Cogmind - Beta 13 @@@ ROGUE MODE // 2024.07.01 @ 00:28:46 Player: JackZewap Result: Destroyed by G-34 Mercenary with Small Laser Performance ------------- Evolutions (0) 0 Regions Visited (1) 200 Robots Destroyed (17) 85 Value Destroyed (376) 376 Prototype IDs (2) 40 Alien Tech Used (0) 0 Bonus (0) 0 TOTAL SCORE: 701 Bonus ------- None Cogmind --------- Core Integrity 0/250 Matter 191/300 Energy 81/100 System Corruption 0% Temperature Cool (6) Movement Rolling (90) Location -10/Materials Parts ------- > --- POWER (1) -------- Backup Power I > --- PROPULSION (2) --- Armored Wheel Armored Wheel > --- UTILITY (2) ------ Small Storage Unit Signal Interpreter > --- WEAPON (2) ------- Maul Maul > --- INVENTORY (8) ---- Light Ion Engine Armored Wheel Armored Wheel Signal Interpreter Signal Interpreter Medium Laser Small Laser Light Assault Rifle Peak State ------------ > --- POWER ------------ Light Nuclear Core > --- PROPULSION ------- Armored Wheel Armored Wheel > --- UTILITY ---------- Small Storage Unit Signal Interpreter > --- WEAPON ----------- Medium Laser Light Assault Rifle > --- INVENTORY -------- Light Ion Engine Armored Wheel Armored Wheel Signal Interpreter Signal Interpreter Small Laser Maul Maul [Rating: 12] Favorites ----------- Power Ion Engine Engine Ion Engine Power Core Light Nuclear Core Propulsion Armored Wheel Leg Aluminum Leg Wheel Armored Wheel Utility Small Storage Unit Storage Small Storage Unit Processor Signal Interpreter Weapon Medium Laser Energy Gun Medium Laser Ballistic Gun Assault Rifle Impact Weapon Maul Build | -11 -10 ------- Run | Yrd Mat Slots Evolved . | . . Power . | . . Propulsion . | . . Utility . | . . Weapon . | . . Parts Attached 20 | 6 14 Power 2 | 1 1 Engine 1 | 1 . Core 1 | . 1 Reactor . | . . Propulsion 4 | 2 2 Treads . | . . Leg 2 | 2 . Wheel 2 | . 2 Hover . | . . Flight . | . . Utility 3 | 1 2 Device . | . . Storage 1 | 1 . Processor 2 | . 2 Hackware . | . . Protection . | . . Artifact . | . . Weapon 11 | 2 9 Energy Gun 3 | 1 2 Energy Cannon . | . . Ballistic Gun 5 | 1 4 Ballistic Cannon . | . . Launcher . | . . Special Weapon . | . . Impact Weapon 3 | . 3 Slashing Weapon . | . . Piercing Weapon . | . . Special Melee Weapon . | . . Unidentified Prototypes . | . . Parts Lost 2 | . 2 Power 1 | . 1 Propulsion . | . . Utility . | . . Weapon 1 | . 1 Highest Loss Streak 1 | . 1 To Critical Strikes . | . . Average Slot Usage (%) 89 | . 89 Engine 11 | . 11 Core 1 | . 1 Wheel 26 | . 26 Storage 14 | . 14 Processor 4 | . 4 Energy Gun 10 | . 10 Ballistic Gun 11 | . 11 Impact Weapon 6 | . 6 Naked Turns . | . . Heaviest Build 15 | 14 15 Greatest Support 24 | 20 24 Greatest Overweight (x) 1 | . 1 Average Overweight (x) . | . . Largest Inventory Capacity 8 | 8 8 Average Capacity 7 | 6 8 Most Carried 8 | . 8 Average Carried 5 | . 5 Final Capacity 8 | 8 8 Final Carried 8 | . 8 Class Distribution -------------------- 100% | Mutant Dominant Class ---------------- Mutant | -10/Materials Resources | -11 -10 ----------- Run | Yrd Mat Matter Collected 497 | 160 337 Remotely . | . . Salvage Created 526 | . 526 Parts 32 | . 32 Haulers Intercepted 1 | . 1 Recyclers Shooed 2 | . 2 Parts Field Recycled . | . . Retrieved Matter . | . . Parts Self-Destructed . | . . Prevented . | . . Kills | -11 -10 ------- Run | Yrd Mat Combat Hostiles Destroyed 12 | . 12 Guns 12 | . 12 Classes Destroyed 6 | . 6 Worker 1 | . 1 Hauler 1 | . 1 Operator 1 | . 1 Watcher 2 | . 2 Swarmer 4 | . 4 Grunt 8 | . 8 Best Kill Streak 5 | . 5 Combat Bots Only 5 | . 5 Max Kills in Single Turn 1 | . 1 Gunslinging . | . . Exploded . | . . Melee . | . . Uniques/NPCs Destroyed . | . . Combat | -11 -10 -------- Run | Yrd Mat Hostile Shots Fired 93 | . 93 Missed 24 | . 24 Damage Taken 774 | . 774 Core 251 | . 251 Absorbed by Shields . | . . Core Remaining (%) 100 | 100 . Volleys Fired 53 | . 53 Largest 2 | . 2 Hottest 70 | . 70 Shots Fired 105 | . 105 Gun 105 | . 105 Cannon . | . . Launcher . | . . Special . | . . Kinetic 84 | . 84 Thermal 21 | . 21 Explosive . | . . Electromagnetic . | . . Robot Hit Streak 8 | . 8 Robot Miss Streak 4 | . 4 Penetration Max . | . . Secondary Targets 2 | . 2 Max Gunslinging Chain 1 | . 1 Shots Hit Robots 66 | . 66 Core Hits 27 | . 27 Critical Kills 1 | . 1 Critical Parts Destroyed . | . . Critical Strikes 2 | . 2 Burn 1 | . 1 Destroy 1 | . 1 Melee Attacks 10 | . 10 Impact 10 | . 10 Slashing . | . . Piercing . | . . Sneak Attacks 1 | . 1 Combat Hostiles . | . . Follow-up Attacks . | . . Damage Inflicted 1027 | . 1027 Guns 869 | . 869 Cannons . | . . Explosions . | . . Melee 158 | . 158 Ramming . | . . Kinetic 695 | . 695 Thermal 174 | . 174 Explosive . | . . Electromagnetic . | . . Impact 158 | . 158 Slashing . | . . Piercing . | . . Highest Corruption . | . . Average Corruption . | . . Corruption Purged . | . . Corruption Blocked . | . . Overload Shots . | . . Overflow Damage 98 | . 98 Projectiles . | . . Explosions . | . . Melee 98 | . 98 Knockbacks . | . . Impact . | . . Kinetic . | . . Secondary . | . . Self-Inflicted Damage . | . . Shots . | . . Rammed . | . . Targets Rammed . | . . Kicked . | . . Crushed . | . . Highest Temperature 168 | . 168 Average Temperature 51 | . 51 Received Heat Transfer 339 | . 339 Siege Activations . | . . Robots Corrupted . | . . Combat Hostiles . | . . Parts Fried 1 | . 1 Impact Corruptions 5 | . 5 Robots Melted . | . . Combat Hostiles . | . . Parts Melted 1 | . 1 Heat Transferred 592 | . 592 Parts Sabotaged . | . . Parts Stolen . | . . Parts Stripped . | . . Power Chain Reactions . | . . Alert | -11 -10 ------- Run | Yrd Mat Peak Influence 259 | . 259 Initial . | . . Average 66 | . 71 Maximum Alert Level 1 | . 1 Low Security (%) 91 | 100 90 Level 1 8 | . 9 Level 2 . | . . Level 3 . | . . Level 4 . | . . Level 5 . | . . High Security . | . . Max Security . | . . Squads Dispatched 4 | . 4 Investigation 3 | . 3 Extermination . | . . Reinforcement 1 | . 1 Assault . | . . Garrison . | . . Intercept . | . . Searches Triggered . | . . Construction Impeded . | . . Haulers Reinforced . | . . Active Scanning Responses . | . . Cargo Convoy Interrupts . | . . Stealth | -11 -10 --------- Run | Yrd Mat Distress Signals 1 | . 1 Communications Jammed . | . . Distress Signals . | . . Times Spotted 23 | . 23 Peak Tracking Total 5 | . 5 Tactical Retreats . | . . Traps | -11 -10 ------- Run | Yrd Mat Traps Triggered 3 | . 3 Indirectly . | . . Trap Hack Attempts . | . . Triggered . | . . Disarmed . | . . Reprogrammed . | . . Reused . | . . Traps Extracted . | . . Installed . | . . Triggered . | . . Machines | -11 -10 ---------- Run | Yrd Mat Machines Disabled . | . . Max in Single Turn . | . . Machines Repaired . | . . Machines Dismantled . | . . Machines Sabotaged . | . . Overloaded Fab Kills . | . . Hacking | -11 -10 --------- Run | Yrd Mat Machines Accessed 8 | . 8 Terminals 6 | . 6 Fabricators . | . . Repair Stations 1 | . 1 Recycling Units 1 | . 1 Scanalyzers . | . . Garrison Access . | . . Total Hacks 20 | . 20 Successful 12 | . 12 Failed 8 | . 8 Catastrophic . | . . Database Lockouts . | . . Manual 16 | . 16 Terminals 18 | . 18 Fabricators . | . . Repair Stations 1 | . 1 Recycling Units 1 | . 1 Scanalyzers . | . . Garrison Access . | . . Terminal Hacks 4 | . 4 Prototype ID Bank 1 | . 1 Emergency Access Points 1 | . 1 Terminal Index 1 | . 1 Hauler Manifests 1 | . 1 Fabricator Hacks . | . . Repair Station Hacks 1 | . 1 Refit 1 | . 1 Recycling Unit Hacks . | . . Scanalyzer . | . . Garrison Access Hacks . | . . Unauthorized Hacks 7 | . 7 Terminals 6 | . 6 Assimilate 2 | . 2 Botnet 3 | . 3 Operators 1 | . 1 Fabricators . | . . Repair Stations . | . . Recycling Units 1 | . 1 Reject 1 | . 1 Scanalyzers . | . . Garrison Access . | . . Data Cores Recovered . | . . Used . | . . Hacking Detections 7 | . 7 Full Trace Events 1 | . 1 Feedback Events . | . . Feedback Blocked . | . . Robot Schematics Acquired . | . . Robots Built . | . . Authchips . | . . Time . | . . Total Robot Build Rating . | . . Part Schematics Acquired . | . . Parts Built . | . . Authchips . | . . Time . | . . Total Part Build Rating . | . . Parts Repaired . | . . Time . | . . Parts Recycled . | . . Recycled Matter . | . . Retrieved Matter . | . . Retrieved Components . | . . Parts Scanalyzed . | . . Part Schematics Acquired . | . . Parts Damaged . | . . Bothacking | -11 -10 ------------ Run | Yrd Mat Used RIF Installer . | . . Robots Hacked . | . . Non-combat . | . . Combat . | . . Robot Hacks Applied . | . . Relay Couplers Released . | . . Fabnet Peak Effective % . | . . Robots Rewired . | . . Allies Hacked . | . . Hacks Repelled . | . . Allies | -11 -10 -------- Run | Yrd Mat Total Allies . | . . Largest Group . | . . Highest-Rated Group . | . . Highest-Rated Ally . | . . Total Orders . | . . Ally Attacks . | . . Total Damage . | . . Kills . | . . Allies Corrupted . | . . Allies Melted . | . . Intel | -11 -10 ------- Run | Yrd Mat Robot Analysis Total . | . . Derelict Logs Recovered . | . . Drone Launches . | . . Drone Recoveries . | . . Exploration | -11 -10 ------------- Run | Yrd Mat Turns Passed 968 | 60 908 Spaces Moved 763 | 48 715 Core 9 | 9 . Treads . | . . Legs 69 | 39 30 Wheels 685 | . 685 Hover . | . . Flight . | . . Fastest Speed 50 | 50 90 Average Speed 92 | 106 91 Slowest Speed 120 | 120 120 Overloaded Moves . | . . Propulsion Burnouts . | . . Robots Hopped . | . . Cave-ins Triggered . | . . Exploration Rate (%) 48 | 3 94 Regions Visited 1 Branch Regions . Pre-discovered Areas . | . . Known Exits Taken . | . . Unknown Exits Taken 1 | 1 . Scrap Searched . | . . Spaces Dug 8 | . 8 Terrain Destroyed 8 | . 8 Melee 8 | . 8 Projectile . | . . AOE . | . . Terrain Rammed . | . . Walls Destroyed . | . . Machines Disabled . | . . Actions | -11 -10 --------- Run | Yrd Mat Total 900 | 53 847 Wait 38 | . 38 Move 762 | 47 715 Hop . | . . Pick Up 9 | . 9 Fast Attach 12 | 6 6 Attach . | . . Detach 3 | . 3 Swap 8 | . 8 Drop 5 | . 5 Fire 53 | . 53 Melee 10 | . 10 Ram . | . . Kick . | . . Crush . | . . Escape Stasis . | . . Rewire . | . . Trap . | . . Miscellaneous . | . . Route ------- -11/Scrapyard -10/Materials (discovered 4 exits: [*Mat x3] / [*Min]) History --------- Turn | Location | Event 4 | -11/Scrapyard | Discovered new exit (range 16) 61 | -11/Scrapyard | Entered Materials 296 | -10/Materials | Discovered new exit (range 9) 310 | -10/Materials | Build established: Mutant 371 | -10/Materials | Discovered new exit (range 13) 403 | -10/Materials | Discovered new exit (range 10) 694 | -10/Materials | Discovered new exit (range 13) 796 | -10/Materials | Core integrity fell below 50% 955 | -10/Materials | Core integrity fell below 20% 969 | -10/Materials | Destroyed by G-34 Mercenary with Small Laser Last Messages --------------- 00945_ Aluminum Leg melted. 00945_ G-34 Mercenary destroyed. 00947_ K-01 Serf collects debris. 00952_ Triggered Alarm Trap. 00952_ An alarm sounds. 00952_ ALERT: Alarm triggered, dispatching investigation squad. 00956_ G-34 Mercenary suffers critical hit (Burn). 00957_ K-01 Serf cleans the Repair Station. 00958_ Lgt. Nuclear Core destroyed. 00961_ K-01 Serf collects debris. 00962_ U-05 Engineer lays Concrete. 00964_ Connecting with Repair Station... >>Refit Scanning configuration... Attaching: Backup Power I x1 00965_ U-05 Engineer lays Concrete. 00965_ K-01 Serf collects debris. 00967_ U-05 Engineer lays Concrete. 00968_ K-01 Serf cleans the Repair Station. Map ----- +----------------------------------------------------+ | ????# #??# #??# # # | | ????# #???# #???# ####### | | ????## ##???## ##???# # # | | ?????# #?????# #????# # # | | ?????# #?????# #????# # # | | ?????# #?????# #????# # """# | | ????## ##???## ##???# # """# | | ????# ##### ##### # """# | | ????# + # | | ????# ###### # """# | | #???# #??# # # """# | | #???# ##### #??# + """# | | #???#######???#######??# # # # | | #??????????????????????### # # | | #????????????????????????# ####### | | #????????????????????????# #?????? | | #????????????????????????# #?????? | | ?????????????????????????# #?????? | | ?????????????????????????# #?????? | | ?????????#######?????????# #?????? | | ########## ########### ###???? | | =% = #???? | | ####?????# T % [=%k < #???? | | ?????????# %* % """ k #???? | | ?????????# #### g"R" ###???? | | ?????????## ##??# " "@ #?????? | | ########### #???# g #?????? | | ## #???# g #?????? | | " """ ## #???# #?????? | | " """ ## #???# u"""" #?????? | | " """ ## #???# """" #?????? | | + #???# """" #?????? | | ############+##??## #?????? | | ####????# ??? # #?????? | | #????# """ # #?????? | | " #????# """"" # +?????? | | #????# """"" ####?? #?????? | | #????# """"" #????? #?????? | | ! #????# """ #????? ?????? | | +????+ #????? ?????? | | ####????# #????? ?????? | | #######+########??????????????? | | #?########????????????? | | #?# //==#????????????? | | #?#== ==#????????????? | | #?# #????????????? | | ### ##????????????? | | #?????????????? | | ######### #?????????????? | | ??????#####+########?????????????? | +----------------------------------------------------+ Best States ------------- Heat Dissipation 25 Energy Generation 14 Energy Capacity 250 Matter Stores 218 Matter Capacity 300 Sight Range 16 Terrain Scan Density 10 Evasion (%) 55 Item Schematics ----------------- None Robot Schematics ------------------ None Fabricated ------------ Nothing Alien Tech Used ----------------- None Achievements -------------- None Challenges ------------ None Game ------ Seed ArcKineticInterpreter Manual? 0 Play Time 00:13:11 Cumulative 106.4 hours Start 2024.07.01 @ 00:21:58 End 2024.07.01 @ 00:28:46 Sessions 1 Manual Loads 0 Difficulty Rogue Special Mode None Game No. 123 Rogue 117 Adventurer 6 Explorer 0 Win Type - Total 1 Types 1/0/0/0/0/0/0/0/0 Lore% 37 Gallery% 58 Achievement% 42 Wizard Run 0 Options --------- Layout 0 ASCII 0 Keyboard 1 Movement Numpad Keybinds 0 Fullscreen 0 Font 14/Smallcaps Map View 76x50 Zoom Use 0% Tactical HUD 1 Map Filters NONE Filters NONE Steam 1 RUN: 7d24a249-aa55-426b-8dc0-0097c2b20d1d